Cogmind - Beta 13 X1 @@@ ROGUE MODE // 2023.07.15 @ 03:02:41 Player: Runia Result: Destroyed by D-53 Grenadier with Mini Grenade Launcher Performance ------------- Evolutions (0) 0 Regions Visited (4) 800 Robots Destroyed (16) 80 Value Destroyed (207) 207 Prototype IDs (26) 520 Alien Tech Used (0) 0 Bonus (234) 234 TOTAL SCORE: 1841 Bonus ------- Aligned with FarCom 300 Friendly Fire -66 Cogmind --------- Core Integrity 0/250 Matter 105/300 Energy 98/100 System Corruption 1% Temperature Cool (0) Movement Core (450) Ox8 Location -9/Mines Parts ------- > --- POWER (1) -------- (None) > --- PROPULSION (2) --- Armored Wheel > --- UTILITY (2) ------ Heat Sink Large Storage Unit > --- WEAPON (2) ------- Autogun Autogun > --- INVENTORY (15) --- Light Treads Light Treads Armored Wheel High-capacity Matter Pod (200) High-capacity Matter Pod (200) Hacking Suite Autogun Autogun Autogun Autogun Rocket Launcher Peak State ------------ > --- POWER ------------ Ion Engine > --- PROPULSION ------- Light Treads Armored Wheel > --- UTILITY ---------- Heat Sink Large Storage Unit > --- WEAPON ----------- Autogun Autogun > --- INVENTORY -------- Light Treads Light Treads Armored Wheel High-capacity Matter Pod Hacking Suite Autogun Autogun Autogun Autogun Autogun Rocket Launcher [Rating: 12] Favorites ----------- Power Ion Engine Engine Ion Engine Propulsion Light Treads Treads Light Treads Leg Aluminum Leg Wheel Armored Wheel Utility Heat Sink Device Heat Sink Storage Large Storage Unit Weapon Autogun Energy Gun Small Laser Ballistic Gun Autogun Launcher Rocket Launcher Build | -11 -10 -10 -10 -9 ------- Run | Jun Mat Min Exi Min Slots Evolved . | . . . . . Power . | . . . . . Propulsion . | . . . . . Utility . | . . . . . Weapon . | . . . . . Parts Attached 24 | 3 16 . 3 2 Power 2 | . 2 . . . Engine 2 | . 2 . . . Core . | . . . . . Reactor . | . . . . . Propulsion 7 | 2 5 . . . Treads 4 | 2 2 . . . Leg . | . . . . . Wheel 3 | . 3 . . . Hover . | . . . . . Flight . | . . . . . Utility 3 | . 3 . . . Device 1 | . 1 . . . Storage 2 | . 2 . . . Processor . | . . . . . Hackware . | . . . . . Protection . | . . . . . Artifact . | . . . . . Weapon 12 | 1 6 . 3 2 Energy Gun . | . . . . . Energy Cannon . | . . . . . Ballistic Gun 11 | 1 6 . 3 1 Ballistic Cannon . | . . . . . Launcher 1 | . . . . 1 Special Weapon . | . . . . . Impact Weapon . | . . . . . Slashing Weapon . | . . . . . Piercing Weapon . | . . . . . Special Melee Weapon . | . . . . . Unidentified Prototypes . | . . . . . Parts Lost 2 | . . . . 2 Power 1 | . . . . 1 Propulsion 1 | . . . . 1 Utility . | . . . . . Weapon . | . . . . . Highest Loss Streak 2 | . . . . 2 To Critical Strikes . | . . . . . Average Slot Usage (%) 91 | . 97 100 73 100 Engine 14 | . 14 14 14 14 Treads 16 | . 18 14 14 14 Wheel 10 | . 8 14 14 14 Device 13 | . 12 14 14 14 Storage 14 | . 14 14 14 14 Ballistic Gun 21 | . 27 28 2 23 Naked Turns . | . . . . . Heaviest Build 33 | 14 32 32 32 33 Greatest Support 40 | 40 40 12 12 12 Greatest Overweight (x) 7 | . 7 2 2 2 Average Overweight (x) 1 | . 1 2 2 2 Largest Inventory Capacity 15 | 8 15 15 15 15 Average Capacity 12 | 8 10 15 15 15 Most Carried 14 | 6 10 11 14 11 Average Carried 9 | 4 8 10 13 11 Final Capacity 15 | 8 15 15 15 15 Final Carried 11 | 3 10 11 11 11 Class Distribution -------------------- 100% | Mutant Dominant Class ---------------- Mutant | -10/Materials Mutant | -10/Mines Mutant | -10/Exiles Mutant | -9/Mines Resources | -11 -10 -10 -10 -9 ----------- Run | Jun Mat Min Exi Min Matter Collected 974 | 200 722 52 . . Remotely . | . . . . . Salvage Created 675 | . 502 90 . 83 Parts 30 | . 28 2 . . Haulers Intercepted 2 | . 2 . . . Recyclers Shooed 2 | . 2 . . . Parts Field Recycled . | . . . . . Retrieved Matter . | . . . . . Parts Self-Destructed . | . . . . . Prevented . | . . . . . Kills | -11 -10 -10 -10 -9 ------- Run | Jun Mat Min Exi Min Combat Hostiles Destroyed 27 | . 8 . . 19 Guns 10 | . 8 . . 2 AOE 17 | . . . . 17 Classes Destroyed 8 | . 7 . . 1 Worker 1 | . 1 . . . Hauler 2 | . 2 . . . Recycler 3 | . 2 1 . . Operator 1 | . 1 . . . Watcher 1 | . 1 . . . Swarmer 5 | . 5 . . . Grunt 3 | . 3 . . . Assembled 19 | . . . . 19 Best Kill Streak 19 | . 6 1 . 19 Combat Bots Only 19 | . 4 . . 19 Max Kills in Single Turn 4 | . 1 1 . 4 Gunslinging . | . . . . . Exploded 4 | . . . . 4 Melee . | . . . . . Uniques/NPCs Destroyed . | . . . . . Combat | -11 -10 -10 -10 -9 -------- Run | Jun Mat Min Exi Min Damage Taken 1055 | . 514 . . 541 Core 276 | . 155 . . 121 Absorbed by Shields . | . . . . . Regen/Repaired (Parts) 59 | . 59 . . . Core Remaining (%) 100 | 100 . . . . Volleys Fired 66 | . 47 4 1 14 Largest 2 | . 2 2 2 2 Hottest 46 | . 46 46 46 46 Shots Fired 122 | . 94 8 2 18 Gun 112 | . 94 8 2 8 Cannon . | . . . . . Launcher 10 | . . . . 10 Special . | . . . . . Kinetic 112 | . 94 8 2 8 Thermal . | . . . . . Explosive 10 | . . . . 10 Electromagnetic . | . . . . . Robot Hit Streak 16 | . 16 7 . 4 Robot Miss Streak 5 | . 5 2 . 2 Penetration Max . | . . . . . Secondary Targets 2 | . 1 . . 1 Max Gunslinging Chain 1 | . 1 . . 1 Shots Hit Robots 66 | . 56 5 . 5 Core Hits 60 | . 22 2 . 36 Critical Kills . | . . . . . Critical Parts Destroyed 1 | . 1 . . . Critical Strikes 1 | . 1 . . . Destroy 1 | . 1 . . . Melee Attacks . | . . . . . Impact . | . . . . . Slashing . | . . . . . Piercing . | . . . . . Sneak Attacks . | . . . . . Combat Hostiles . | . . . . . Follow-up Attacks . | . . . . . Damage Inflicted 1959 | . 808 73 . 1078 Guns 983 | . 808 73 . 102 Cannons . | . . . . . Explosions 976 | . . . . 976 Melee . | . . . . . Ramming . | . . . . . Kinetic 983 | . 808 73 . 102 Thermal . | . . . . . Explosive 976 | . . . . 976 Electromagnetic . | . . . . . Impact . | . . . . . Slashing . | . . . . . Piercing . | . . . . . Highest Corruption 1 | . 1 1 1 1 Average Corruption 1 | . 1 1 1 1 Corruption Purged . | . . . . . Corruption Blocked . | . . . . . Effects 9 | . . 5 4 . Matter Fused 2 | . . 1 1 . Heat Flow Errors 1 | . . 1 . . Data Loss (minor) 4 | . . 1 3 . Data Loss (major) 1 | . . 1 . . Alerts 1 | . . 1 . . Overload Shots . | . . . . . Overflow Damage 1 | . . . . 1 Projectiles . | . . . . . Explosions 1 | . . . . 1 Melee . | . . . . . Knockbacks . | . . . . . Impact . | . . . . . Kinetic . | . . . . . Secondary . | . . . . . Self-Inflicted Damage 42 | . . . . 42 Shots 2 | . . . . 2 Rammed . | . . . . . Targets Rammed . | . . . . . Kicked . | . . . . . Crushed . | . . . . . Highest Temperature 169 | . 8 169 . . Average Temperature 31 | . 2 94 . . Received Heat Transfer 168 | . 168 . . . Siege Activations . | . . . . . Robots Corrupted . | . . . . . Combat Hostiles . | . . . . . Parts Fried . | . . . . . Impact Corruptions . | . . . . . Robots Melted . | . . . . . Combat Hostiles . | . . . . . Parts Melted . | . . . . . Heat Transferred . | . . . . . Parts Sabotaged . | . . . . . Parts Stolen . | . . . . . Parts Stripped . | . . . . . Power Chain Reactions . | . . . . . Missiles Intercepted . | . . . . . Alert | -11 -10 -10 -10 -9 ------- Run | Jun Mat Min Exi Min Peak Influence 194 | . 194 40 . 31 Initial 35 | . . 35 . . Average 74 | . 86 38 . 20 Maximum Alert Level . | . . . . . Low Security (%) 100 | 100 100 100 . 100 Level 1 . | . . . . . Level 2 . | . . . . . Level 3 . | . . . . . Level 4 . | . . . . . Level 5 . | . . . . . High Security . | . . . . . Max Security . | . . . . . Squads Dispatched 2 | . 2 . . . Investigation 1 | . 1 . . . Extermination . | . . . . . Reinforcement 1 | . 1 . . . Assault . | . . . . . Garrison . | . . . . . Intercept . | . . . . . Searches Triggered . | . . . . . Construction Impeded . | . . . . . Haulers Reinforced . | . . . . . Active Scanning Responses . | . . . . . Cargo Convoy Interrupts . | . . . . . Stealth | -11 -10 -10 -10 -9 --------- Run | Jun Mat Min Exi Min Distress Signals . | . . . . . Communications Jammed . | . . . . . Distress Signals . | . . . . . Times Spotted 29 | . 17 . . 12 Peak Tracking Total 11 | . 7 . 9 11 Tactical Retreats 2 | . 1 . . 1 Traps | -11 -10 -10 -10 -9 ------- Run | Jun Mat Min Exi Min Traps Triggered 4 | . 4 . . . Indirectly . | . . . . . Trap Hack Attempts . | . . . . . Triggered . | . . . . . Disarmed . | . . . . . Reprogrammed 5 | . 5 . . . Reused . | . . . . . Traps Extracted . | . . . . . Installed . | . . . . . Triggered . | . . . . . Machines | -11 -10 -10 -10 -9 ---------- Run | Jun Mat Min Exi Min Machines Disabled 1 | . . . 1 . Max in Single Turn 1 | . . . 1 . Machines Repaired . | . . . . . Machines Sabotaged . | . . . . . Overloaded Fab Kills . | . . . . . Hacking | -11 -10 -10 -10 -9 --------- Run | Jun Mat Min Exi Min Machines Accessed 9 | . 7 . 2 . Terminals 6 | . 6 . . . Fabricators . | . . . . . Repair Stations 1 | . 1 . . . Recycling Units . | . . . . . Scanalyzers . | . . . . . Garrison Access . | . . . . . Total Hacks 26 | . 24 . 2 . Successful 13 | . 11 . 2 . Failed 13 | . 13 . . . Catastrophic . | . . . . . Database Lockouts . | . . . . . Manual 6 | . 5 . 1 . Terminals 22 | . 22 . . . Fabricators . | . . . . . Repair Stations 2 | . 2 . . . Recycling Units . | . . . . . Scanalyzers . | . . . . . Garrison Access . | . . . . . Terminal Hacks 11 | . 9 . 2 . Record 1 | . . . 1 . Part Schematic 1 | . 1 . . . Prototype ID Bank 2 | . 2 . . . Locate Traps 2 | . 2 . . . Reprogram Traps 1 | . 1 . . . Maintenance Status 1 | . 1 . . . Hauler Manifests 1 | . 1 . . . Zone Layout 1 | . 1 . . . Derelict Proto ID Bank 1 | . . . 1 . Fabricator Hacks . | . . . . . Repair Station Hacks 2 | . 2 . . . Scan Component 1 | . 1 . . . Repair 1 | . 1 . . . Recycling Unit Hacks . | . . . . . Scanalyzer . | . . . . . Garrison Access Hacks . | . . . . . Unauthorized Hacks . | . . . . . Terminals . | . . . . . Fabricators . | . . . . . Repair Stations . | . . . . . Recycling Units . | . . . . . Scanalyzers . | . . . . . Garrison Access . | . . . . . Data Cores Recovered . | . . . . . Used . | . . . . . Hacking Detections 6 | . 6 . . . Full Trace Events . | . . . . . Feedback Events . | . . . . . Feedback Blocked . | . . . . . Robot Schematics Acquired . | . . . . . Robots Built . | . . . . . Authchips . | . . . . . Time . | . . . . . Total Robot Build Rating . | . . . . . Part Schematics Acquired 1 | . 1 . . . Parts Built . | . . . . . Authchips . | . . . . . Time . | . . . . . Total Part Build Rating . | . . . . . Parts Repaired 1 | . 1 . . . Time 32 | . 32 . . . Parts Recycled . | . . . . . Recycled Matter . | . . . . . Retrieved Matter . | . . . . . Retrieved Components . | . . . . . Parts Scanalyzed . | . . . . . Part Schematics Acquired . | . . . . . Parts Damaged . | . . . . . Bothacking | -11 -10 -10 -10 -9 ------------ Run | Jun Mat Min Exi Min Used RIF Installer . | . . . . . Robots Hacked . | . . . . . Non-combat . | . . . . . Combat . | . . . . . Robot Hacks Applied . | . . . . . Relay Couplers Released . | . . . . . Fabnet Peak Effective % . | . . . . . Robots Rewired . | . . . . . Allies Hacked . | . . . . . Hacks Repelled . | . . . . . Allies | -11 -10 -10 -10 -9 -------- Run | Jun Mat Min Exi Min Total Allies . | . . . . . Largest Group . | . . . . . Highest-Rated Group . | . . . . . Highest-Rated Ally . | . . . . . Total Orders . | . . . . . Ally Attacks . | . . . . . Total Damage . | . . . . . Kills . | . . . . . Allies Corrupted . | . . . . . Allies Melted . | . . . . . Intel | -11 -10 -10 -10 -9 ------- Run | Jun Mat Min Exi Min Robot Analysis Total . | . . . . . Derelict Logs Recovered 1 | . . 1 . . Drone Launches . | . . . . . Drone Recoveries . | . . . . . Exploration | -11 -10 -10 -10 -9 ------------- Run | Jun Mat Min Exi Min Turns Passed 1856 | 5 1086 258 440 67 Spaces Moved 1262 | 1 668 203 360 30 Core 3 | . 3 . . . Treads 193 | 1 192 . . . Legs . | . . . . . Wheels 1066 | . 473 203 360 30 Hover . | . . . . . Flight . | . . . . . Fastest Speed 105 | 160 105 120 120 120 Average Speed 123 | 160 126 120 120 120 Slowest Speed 400 | 160 400 120 120 120 Overloaded Moves . | . . . . . Propulsion Burnouts . | . . . . . Robots Hopped . | . . . . . Cave-ins Triggered . | . . . . . Exploration Rate (%) 44 | 3 87 47 70 16 Regions Visited 4 Branch Regions 3 Pre-discovered Areas 1 | . . . 1 . Known Exits Taken . | . . . . . Unknown Exits Taken 4 | 1 1 1 1 . Scrap Searched . | . . . . . Spaces Dug 15 | . . . . 15 Terrain Destroyed 64 | . . . . 64 Melee . | . . . . . Projectile . | . . . . . AOE 64 | . . . . 64 Terrain Rammed . | . . . . . Walls Destroyed . | . . . . . Machines Disabled . | . . . . . Actions | -11 -10 -10 -10 -9 --------- Run | Jun Mat Min Exi Min Total 1462 | 6 831 211 368 46 Wait 72 | . 68 4 . . Move 1258 | . 667 202 359 30 Hop . | . . . . . Pick Up 20 | . 18 1 1 . Fast Attach 8 | . 8 . . . Attach 6 | 3 . . 3 . Detach 3 | . . . 3 . Swap 10 | . 8 . . 2 Drop 19 | 3 15 . 1 . Fire 66 | . 47 4 1 14 Melee . | . . . . . Ram . | . . . . . Kick . | . . . . . Crush . | . . . . . Escape Stasis . | . . . . . Rewire . | . . . . . Trap . | . . . . . Miscellaneous . | . . . . . Route ------- -11/Junkyard -10/Materials (discovered 5 exits: [*Mat x3] / [*Min] / [Sub]) -10/Mines (discovered 3 exits: [*Mat x2] / *Exi) -10/Exiles -9/Mines History --------- Turn | Location | Event 6 | -11/Junkyard | Discovered new exit (range 0) 6 | -11/Junkyard | Entered Materials 311 | -10/Materials | Build established: Mutant 325 | -10/Materials | Discovered new exit (range 11) 536 | -10/Materials | Discovered new exit (range 15) 576 | -10/Materials | Discovered new exit (range 13) 576 | -10/Materials | Discovered new exit (range 10) 769 | -10/Materials | Discovered new exit (range 15) 925 | -10/Materials | Core integrity fell below 50% 1041 | -10/Materials | Repaired Arm. Wheel 1092 | -10/Materials | Entered Mines 1092 | -10/Mines | Discovered new exit (range 11) 1099 | -10/Mines | Met a Derelict bent on vengeance 1159 | -10/Mines | Discovered new exit (range 7) 1224 | -10/Mines | Learned location of 2 exits from Materials 1241 | -10/Mines | Received a Rocket Launcher from a helpful Derelict 1344 | -10/Mines | Deemed a non-threat by the Exiles lab entrance 1345 | -10/Mines | Discovered new exit (range 5) 1350 | -10/Mines | Entered Exiles 1384 | -10/Exiles | Met 8R-AWN 1403 | -10/Exiles | Met EX-HEX 1457 | -10/Exiles | Learned location of Zion (-7) 1458 | -10/Exiles | Met EX-DEC 1614 | -10/Exiles | Met EX-BIN 1631 | -10/Exiles | Aligned with FarCom system 1632 | -10/Exiles | Given EX-Vault access code 1660 | -10/Exiles | Opened EX-Vault 1698 | -10/Exiles | Warned to stay clear of 0b10 Research branches 1767 | -10/Exiles | Attacked by the Exiles 1780 | -10/Exiles | Discovered new exit (range 10) 1790 | -10/Exiles | Entered Mines 1791 | -9/Mines | Assembled infested the area 1796 | -9/Mines | Assisted by a Guerilla fighting off Assembled 1854 | -9/Mines | Destroyed 19 combat bots 1854 | -9/Mines | Core integrity fell below 20% 1857 | -9/Mines | Destroyed by D-53 Grenadier with Mini Grenade Launcher Last Messages --------------- 01808_ as-83932 destroyed. 01809_ HV Slug penetrates Wall. 01810_ as-42270 destroyed. 01810_ as-47198 destroyed. 01817_ as-12274 destroyed. 01817_ ZT-H69(h) destroyed. 01820_ The unstable cave ceiling collapses. 01821_ as-41941 destroyed. 01822_ The unstable cave ceiling collapses. 01827_ as-26783 destroyed. 01829_ The unstable cave ceiling collapses. 01830_ as-58389 destroyed. 01830_ Switching to secondary target: as-78033. 01832_ The unstable cave ceiling collapses. 01833_ as-78033 destroyed. 01843_ C-30 ARC bursts open, deploying its payload. 01843_ D-53 Grenadier unfolds itself. 01851_ Ion Engine destroyed. 01855_ Lgt. Treads destroyed. 01857_ The unstable cave ceiling collapses. Map ----- +----------------------------------------------------+ | | | | | | | | | | | | | | | | | ?????????????????????????????????????????????????? | | ?????????????????????????????????????????????????? | | ?????????????????????????????????????????????????? | | ?????????????????????????????????????????????????? | | ?????????????????????????????????????????????????? | | ?????????????????????????????????????????????????? | | ??????????????????####???????????????????????????? | | ?????????# ??????## ##??????????????????????????? | | ??????????# ??## ##?????????????????????????? | | ??????????# ## #????????#####????????????? | | ??????????# ##???????# ##??###??????? | | ??????????# #####??## ### ###????? | | ???????????# #### ???? | | ???????????##### # ???? | | ???????????????### ! #???? | | ?????????????????## % # ???? | | ??????????????????# ### %% # | | ??????????????????## @ ##?# % % % | | ???????????????????## #??## $ | | ????????????????????## dd #????### ## | | ?????????????????????# #?????# #?? | | ?????????????????????## ##???? #######??? | | ?????????????????????? ##???? ##????????? | | ????????????????????? ##???# #?????????? | | ???????????????????? #????## ##?????????? | | ???????????????????? ?????#####???????????? | | ??????????????????? ?????????????????????? | | ???????????????????# ?????????????????????? | | ???????????????????## % ?????????????????????? | | ????????????????????# #????????????????????? | | ????????????????????# ????????????????????? | | ?????????????????????# ????????????????????? | | ??????????????????????? ?????????????????????? | | ?????????????????????????????????????????????????? | | ?????????????????????????????????????????????????? | | ?????????????????????????????????????????????????? | | ?????????????????????????????????????????????????? | | ?????????????????????????????????????????????????? | | ?????????????????????????????????????????????????? | | ?????????????????????????????????????????????????? | | ?????????????????????????????????????????????????? | | ?????????????????????????????????????????????????? | +----------------------------------------------------+ Best States ------------- Heat Dissipation 35 Energy Generation 10 Energy Capacity 250 Matter Stores 300 Matter Capacity 300 Sight Range 16 Terrain Scan Density 10 Evasion (%) 40 Recoil Reduction 2 Item Schematics ----------------- Huge Storage Unit | -10/Materials | Hacked Robot Schematics ------------------ None Fabricated ------------ Nothing Alien Tech Used ----------------- None Achievements -------------- None Challenges ------------ None Game ------ Seed DefenseLinkedInterrupter Manual? 0 Play Time 00:11:29 Cumulative 798.5 hours Start 2023.07.15 @ 02:51:42 End 2023.07.15 @ 03:02:41 Sessions 1 Manual Loads 0 Difficulty Rogue Special Mode None Game No. 696 Rogue 696 Adventurer 0 Explorer 0 Win Type - Total 38 Types 14/6/7/1/1/1/6/1/1 Lore% 92 Gallery% 96 Achievement% 81 Wizard Run 0 Options --------- ASCII 0 Keyboard 0 Movement Mouse Keybinds 1 Fullscreen 2 Font 24/Smallcaps Map View 76x50 Tactical HUD 1 Map Filters NONE Filters NONE Steam 1 RUN: 024b96bd-9419-44d2-ba72-b435f188c74c